Departmental family,Entity,Date Paid,Expense type,Expense Area,Supplier,Transaction Number,Amount,Description,Supplier Type,Expenditure Type
UK Statistics Authority,Office for National Statistics,01-Aug-18,Research Consultancy,Public Policy Analysis,Kantar Public,96877,"38,829.60", Information Management Services,SME,Programme
UK Statistics Authority,Office for National Statistics,01-Aug-18,Telecommunications,Digital Services and Technology,BT Global Services,96887,"22,632.00", Information Management Services,Large,Programme
UK Statistics Authority,Office for National Statistics,01-Aug-18,Telecommunications,Public Population and Policy - Operations,BT Global Services,96887,"11,070.26", Information Management Services,Large,Programme
UK Statistics Authority,Office for National Statistics,01-Aug-18,Travel and Subsistence,"Finance, Planning and Performance",Corporate Travel Management ,96891,"60,889.55", Travel and Accommodation Booking Service ,SME,Programme
UK Statistics Authority,Office for National Statistics,01-Aug-18,Childcare Services,"Finance, Planning and Performance",Computershare Voucher Services,96897,"43,303.57", Childcare Vouchers ,Large,Programme
UK Statistics Authority,Office for National Statistics,01-Aug-18,Capital Major Works > 25K,People and Business Services,Hawkings Cladding Ltd,96902,"108,987.59", Newport Cladding ,SME,Programme
UK Statistics Authority,Office for National Statistics,01-Aug-18,Major Works Over 25K,People and Business Services,Hawkings Cladding Ltd,96902,"19,232.70", Newport Cladding ,SME,Programme
UK Statistics Authority,Office for National Statistics,02-Aug-18,Training and Development,People and Business Services,The Whitehall & Industry Group,97305,"84,494.16", High Potential Training Programme,SME,Programme
UK Statistics Authority,Office for National Statistics,02-Aug-18,ICT Outsourcing and Maintenance/Support,Digital Services and Technology,Equiniti-TopLevel,97310,"28,976.64", Information Management Services,Large,Programme
UK Statistics Authority,Office for National Statistics,02-Aug-18,ICT Outsourcing and Maintenance/Support,Digital Services and Technology,Equiniti-TopLevel,97310,"6,961.92", Information Management Services,Large,Programme
UK Statistics Authority,Office for National Statistics,02-Aug-18,Telecommunications,Digital Services and Technology,Virgin Media Business,97312,"25,129.99", Information Management Services,SME,Programme
UK Statistics Authority,Office for National Statistics,02-Aug-18,Telecommunications,Digital Services and Technology,Vodafone Corporate Ltd,97313,"36,404.44", Information Management Services,Large,Programme
UK Statistics Authority,Office for National Statistics,03-Aug-18,Newport Vouchers,Public Population and Policy - Operations,NatCen Social Research,97328,"13,658.04"," Post Office Vouchers, Survey Incentives",Large,Programme
UK Statistics Authority,Office for National Statistics,03-Aug-18,Surveys,Public Population and Policy - Operations,NatCen Social Research,97328,"237,186.90"," Post Office Vouchers, Survey Incentives",Large,Programme
UK Statistics Authority,Office for National Statistics,03-Aug-18,IT Contractual Services,Digital Services and Technology,Methods Digital Ltd,97334,"170,100.00", Computer Hardware,Large,Programme
UK Statistics Authority,Office for National Statistics,03-Aug-18,Contractors,National Accounts and Economic Statistics,LA International,97335,"6,151.39", Information Management Services,SME,Programme
UK Statistics Authority,Office for National Statistics,03-Aug-18,Contractors,National Accounts and Economic Statistics,LA International,97335,"20,845.06", Information Management Services,SME,Programme
UK Statistics Authority,Office for National Statistics,03-Aug-18,Contractors,Policy and Communication,LA International,97335,"6,151.49", Information Management Services,SME,Programme
UK Statistics Authority,Office for National Statistics,03-Aug-18,Contractors,Economic Statistics Transformation,Parity Resources Limited,97340,"8,888.62", Information Management Services,Large,Programme
UK Statistics Authority,Office for National Statistics,03-Aug-18,Contractors,Economic Statistics Transformation,Parity Resources Limited,97340,"10,752.00", Information Management Services,Large,Programme
UK Statistics Authority,Office for National Statistics,03-Aug-18,Contractors,National Accounts and Economic Statistics,Parity Resources Limited,97340,"8,362.44", Information Management Services,Large,Programme
UK Statistics Authority,Office for National Statistics,03-Aug-18,Contractors,Policy and Communication,Parity Resources Limited,97340,"7,689.60", Information Management Services,Large,Programme
UK Statistics Authority,Office for National Statistics,03-Aug-18,Contractors,Public Population and Policy - Operations,Parity Resources Limited,97340,"8,640.00", Information Management Services,Large,Programme
UK Statistics Authority,Office for National Statistics,03-Aug-18,Contractors,Public Population and Policy - Transformation,Parity Resources Limited,97340,"16,992.00", Information Management Services,Large,Programme
UK Statistics Authority,Office for National Statistics,03-Aug-18,Short-Term Contract and Agency staff,National Accounts and Economic Statistics,Parity Resources Limited,97340,"3,035.18", Information Management Services,Large,Programme
UK Statistics Authority,Office for National Statistics,06-Aug-18,PC Purchases < 2K Per Item,Digital Services and Technology,SCC,97608,"60,917.76", Information Management Services,Large,Programme
UK Statistics Authority,Office for National Statistics,06-Aug-18,Travel and Subsistence,"Finance, Planning and Performance",Calder World of Travel,97611,"50,228.08", Corporate Services,SME,Programme
UK Statistics Authority,Office for National Statistics,07-Aug-18,Research Consultancy,Public Policy Analysis,Kantar Public,97926,"2,575.20", Information Management Services,SME,Programme
UK Statistics Authority,Office for National Statistics,07-Aug-18,Surveys,National Accounts and Economic Statistics,Kantar Public,97926,"188,328.90", Information Management Services,SME,Programme
UK Statistics Authority,Office for National Statistics,07-Aug-18,Surveys,Public Policy Analysis,Kantar Public,97926,"427,727.88", Information Management Services,SME,Programme
UK Statistics Authority,Office for National Statistics,07-Aug-18,IT Management and Change,Digital Services and Technology,SCC,97931,"41,160.67", Information Management Services,Large,Programme
UK Statistics Authority,Office for National Statistics,07-Aug-18,IT Contractual Services,Digital Services and Technology,QA Ltd,97940,"30,420.00", Information Management Services,Large,Programme
UK Statistics Authority,Office for National Statistics,07-Aug-18,Surveys,National Accounts and Economic Statistics,IFF Research,97949,"206,844.00", Statistical Services,Large,Programme
UK Statistics Authority,Office for National Statistics,08-Aug-18,ICT Outsourcing and Maintenance/Support,Digital Services and Technology,Crown Hosting Data Centres Limited,97956,"40,435.11", Cloud Services,SME,Programme
UK Statistics Authority,Office for National Statistics,08-Aug-18,ICT Outsourcing and Maintenance/Support,Digital Services and Technology,Crown Hosting Data Centres Limited,97956,"30,898.58", Cloud Services,SME,Programme
UK Statistics Authority,Office for National Statistics,08-Aug-18,Travel and Subsistence,"Finance, Planning and Performance",Corporate Travel Management ,97960,"39,851.14", Travel and Accommodation Booking Service ,SME,Programme
UK Statistics Authority,Office for National Statistics,08-Aug-18,Contractors,Digital Services and Technology,LA International,97963,"10,220.24", Information Management Services,SME,Programme
UK Statistics Authority,Office for National Statistics,08-Aug-18,Contractors,Digital Services and Technology,LA International,97963,"15,339.90", Information Management Services,SME,Programme
UK Statistics Authority,Office for National Statistics,08-Aug-18,Contractors,"Methods, Data and Research",LA International,97963,"7,497.00", Information Management Services,SME,Programme
UK Statistics Authority,Office for National Statistics,08-Aug-18,Contractors,National Accounts and Economic Statistics,LA International,97963,"1,730.09", Information Management Services,SME,Programme
UK Statistics Authority,Office for National Statistics,08-Aug-18,ICT Outsourcing and Maintenance/Support,Data Science Campus,Computacenter (UK) Limited,97969,"10,079.28", Information Management services,Large,Programme
UK Statistics Authority,Office for National Statistics,08-Aug-18,ICT Outsourcing and Maintenance/Support,Digital Services and Technology,Computacenter (UK) Limited,97969,"10,350.35", Information Management services,Large,Programme
UK Statistics Authority,Office for National Statistics,08-Aug-18,IT Management and Change,Digital Services and Technology,Computacenter (UK) Limited,97969,"34,395.84", Information Management services,Large,Programme
UK Statistics Authority,Office for National Statistics,08-Aug-18,IT Purchases > 2K,Data Science Campus,Computacenter (UK) Limited,97969,"80,244.22", Information Management services,Large,Programme
UK Statistics Authority,Office for National Statistics,10-Aug-18,Facilities Management Contract Payments,"Finance, Planning and Performance",Vinci Construction UK Limited,98490,"99,063.59", Facility Management Services,Large,Programme
UK Statistics Authority,Office for National Statistics,10-Aug-18,Procurement Cards,"Finance, Planning and Performance",Royal Bank of Scotland,98500,"67,837.43", Multiple Procurement Card Purchases  ,Large,Programme
UK Statistics Authority,Office for National Statistics,10-Aug-18,Stationery,"Finance, Planning and Performance",Royal Bank of Scotland,98500,"6,930.97", Multiple Procurement Card Stationery Purchases  ,Large,Programme
UK Statistics Authority,Office for National Statistics,10-Aug-18,Accommodation and Building Management,Public Population and Policy - Operations,Manchester Airport PLC,98502,"34,643.94", Office Facilities for International Surveys,Large,Programme
UK Statistics Authority,Office for National Statistics,13-Aug-18,Incentive Payments ,Public Population and Policy - Operations,Park Retail Ltd,98641,"9,212.13", Social Surveys Incentive Vouchers,Large,Programme
UK Statistics Authority,Office for National Statistics,13-Aug-18,Incentive Payments ,Public Population and Policy - Operations,Park Retail Ltd,98641,"38,054.65", Social Surveys Incentive Vouchers,Large,Programme
UK Statistics Authority,Office for National Statistics,13-Aug-18,Incentive Payments ,Public Population and Policy - Operations,Park Retail Ltd,98641,"3,925.28", Social Surveys Incentive Vouchers,Large,Programme
UK Statistics Authority,Office for National Statistics,13-Aug-18,Incentive Payments ,Public Population and Policy - Operations,Park Retail Ltd,98641,"6,077.83", Social Surveys Incentive Vouchers,Large,Programme
UK Statistics Authority,Office for National Statistics,13-Aug-18,Incentive Payments ,Public Population and Policy - Operations,Park Retail Ltd,98641,"6,025.25", Social Surveys Incentive Vouchers,Large,Programme
UK Statistics Authority,Office for National Statistics,13-Aug-18,Contractors,Digital Services and Technology,Empiric Solutions Limited,98643,"10,416.00", Information Management Services,Large,Programme
UK Statistics Authority,Office for National Statistics,13-Aug-18,IT Contractual Services,Digital Services and Technology,Empiric Solutions Limited,98643,"32,760.00", Information Management Services,Large,Programme
UK Statistics Authority,Office for National Statistics,13-Aug-18,Cognitive Testing,Public Population and Policy - Transformation,Solutions Strategy Research Facilitation Ltd,98644,"42,036.00", Information Management Services,Large,Programme
UK Statistics Authority,Office for National Statistics,13-Aug-18,Contractors,"Methods, Data and Research",Concept Information Technology Ltd T/A Concept Resourcing,98645,"7,411.68", Information Management Services,Large,Programme
UK Statistics Authority,Office for National Statistics,13-Aug-18,IT Contractual Services,Digital Services and Technology,Concept Information Technology Ltd T/A Concept Resourcing,98645,"29,856.00", Information Management Services,Large,Programme
UK Statistics Authority,Office for National Statistics,13-Aug-18,Short-Term Contract and Agency Staff,Economic Statistics Transformation,Concept Information Technology Ltd T/A Concept Resourcing,98645,"4,957.00", Information Management Services,Large,Programme
UK Statistics Authority,Office for National Statistics,13-Aug-18,Short-Term Contract and Agency Staff,"Methods, Data and Research",Concept Information Technology Ltd T/A Concept Resourcing,98645,"3,965.81", Information Management Services,Large,Programme
UK Statistics Authority,Office for National Statistics,13-Aug-18,Short-Term Contract and Agency Staff,National Accounts and Economic Statistics,Concept Information Technology Ltd T/A Concept Resourcing,98645,"4,307.46", Information Management Services,Large,Programme
UK Statistics Authority,Office for National Statistics,13-Aug-18,Short-Term Contract and Agency Staff,National Accounts and Economic Statistics,Concept Information Technology Ltd T/A Concept Resourcing,98645,"1,947.00", Information Management Services,Large,Programme
UK Statistics Authority,Office for National Statistics,13-Aug-18,Short-Term Contract and Agency Staff,National Accounts and Economic Statistics,Concept Information Technology Ltd T/A Concept Resourcing,98645,991.45, Information Management Services,Large,Programme
UK Statistics Authority,Office for National Statistics,13-Aug-18,Short-Term Contract and Agency Staff,National Accounts and Economic Statistics,Concept Information Technology Ltd T/A Concept Resourcing,98645,"4,414.64", Information Management Services,Large,Programme
UK Statistics Authority,Office for National Statistics,13-Aug-18,Short-Term Contract and Agency Staff,National Accounts and Economic Statistics,Concept Information Technology Ltd T/A Concept Resourcing,98645,"10,584.36", Information Management Services,Large,Programme
UK Statistics Authority,Office for National Statistics,13-Aug-18,Short-Term Contract and Agency Staff,Public Policy Analysis,Concept Information Technology Ltd T/A Concept Resourcing,98645,"4,957.00", Information Management Services,Large,Programme
UK Statistics Authority,Office for National Statistics,13-Aug-18,Contractors,Digital Services and Technology,Certes Computing Ltd,98656,"12,810.00", Information Management Services,SME,Programme
UK Statistics Authority,Office for National Statistics,13-Aug-18,Contractors,Digital Services and Technology,Certes Computing Ltd,98656,"12,740.64", Information Management Services,SME,Programme
UK Statistics Authority,Office for National Statistics,13-Aug-18,Contractors,Public Population and Policy - Operations,Certes Computing Ltd,98656,"13,312.59", Information Management Services,SME,Programme
UK Statistics Authority,Office for National Statistics,13-Aug-18,Contractors,Digital Services and Technology,LA International,98657,"12,547.56", Information Management Services,SME,Programme
UK Statistics Authority,Office for National Statistics,13-Aug-18,Contractors,"Methods, Data and Research",LA International,98657,"3,748.50", Information Management Services,SME,Programme
UK Statistics Authority,Office for National Statistics,13-Aug-18,Contractors,National Accounts and Economic Statistics,LA International,98657,"12,879.49", Information Management Services,SME,Programme
UK Statistics Authority,Office for National Statistics,13-Aug-18,Non-IT Contractual Payments,Policy and Communication,Four Communications Group Limited,98666,"1,328.40", Information Management Services,SME,Programme
UK Statistics Authority,Office for National Statistics,13-Aug-18,Specialist Creativity,Policy and Communication,Four Communications Group Limited,98666,"79,084.50", Information Management Services,SME,Programme
UK Statistics Authority,Office for National Statistics,13-Aug-18,Consultancy,Digital Services and Technology,Armakuni Ltd,98667,"51,786.36", Information Management Services,SME,Programme
UK Statistics Authority,Office for National Statistics,13-Aug-18,ICT Outsourcing and Maintenance/Support,Digital Services and Technology,Armakuni Ltd,98667,"52,790.40", Information Management Services,SME,Programme
UK Statistics Authority,Office for National Statistics,14-Aug-18,Contractors,Digital Services and Technology,Certes Computing Ltd,98972,"3,843.00", Information Management Services,SME,Programme
UK Statistics Authority,Office for National Statistics,14-Aug-18,Contractors,Digital Services and Technology,Certes Computing Ltd,98972,"11,529.12", Information Management Services,SME,Programme
UK Statistics Authority,Office for National Statistics,14-Aug-18,Contractors,Public Population and Policy - Transformation,Certes Computing Ltd,98972,"21,663.12", Information Management Services,SME,Programme
UK Statistics Authority,Office for National Statistics,15-Aug-18,ICT Outsourcing and Maintenance/Support,Digital Services and Technology,SCC,99278,"5,967.07", Information Management Services,Large,Programme
UK Statistics Authority,Office for National Statistics,15-Aug-18,ICT Outsourcing and Maintenance/Support,Digital Services and Technology,SCC,99278,"25,767.00", Information Management Services,Large,Programme
UK Statistics Authority,Office for National Statistics,15-Aug-18,IT Purchases > 2K,Digital Services and Technology,SCC,99278,"30,699.03", Computer Hardware,Large,Programme
UK Statistics Authority,Office for National Statistics,15-Aug-18,Software Pool 4Yr,Digital Services and Technology,SCC,99278,"7,601.66", Computer Hardware,Large,Programme
UK Statistics Authority,Office for National Statistics,15-Aug-18,Travel and Subsistence,"Finance, Planning and Performance",Corporate Travel Management ,99281,"41,618.49", Travel and Accommodation Booking Service ,SME,Programme
UK Statistics Authority,Office for National Statistics,15-Aug-18,Contractors,Digital Services and Technology,Medley Business Solutions Ltd,99284,"20,142.84", Information Management Services,Large,Programme
UK Statistics Authority,Office for National Statistics,15-Aug-18,Contractors,Digital Services and Technology,Medley Business Solutions Ltd,99284,"17,383.00", Information Management Services,Large,Programme
UK Statistics Authority,Office for National Statistics,15-Aug-18,IT Contractual Services,Digital Services and Technology,QA Ltd,99286,"31,980.00", Information Management Services,Large,Programme
UK Statistics Authority,Office for National Statistics,15-Aug-18,Contractors,Digital Services and Technology,Parity Resources Limited,99290,"11,246.04", Information Management Services,Large,Programme
UK Statistics Authority,Office for National Statistics,15-Aug-18,Contractors,Public Population and Policy - Transformation,Parity Resources Limited,99290,"14,160.00", Information Management Services,Large,Programme
UK Statistics Authority,Office for National Statistics,15-Aug-18,Short-Term Contract and Agency Staff,National Accounts and Economic Statistics,Parity Resources Limited,99290,"1,632.00", Information Management Services,Large,Programme
UK Statistics Authority,Office for National Statistics,15-Aug-18,Short-Term Contract and Agency Staff,Public Population and Policy - Operations,Parity Resources Limited,99290,"6,925.20", Information Management Services,Large,Programme
UK Statistics Authority,Office for National Statistics,15-Aug-18,Short-Term Contract and Agency Staff,Public Population and Policy - Operations,Parity Resources Limited,99290,"4,986.14", Information Management Services,Large,Programme
UK Statistics Authority,Office for National Statistics,15-Aug-18,Short-Term Contract and Agency Staff,Public Population and Policy - Operations,Parity Resources Limited,99290,"1,356.38", Information Management Services,Large,Programme
UK Statistics Authority,Office for National Statistics,15-Aug-18,ICT Outsourcing and Maintenance/Support,Digital Services and Technology,Mosaic Island,99293,"25,680.00", Information Management Services,Large,Programme
UK Statistics Authority,Office for National Statistics,16-Aug-18,Consultancy,Public Population and Policy - Operations,Deloitte,99316,"912,684.78", Information Management Services,Large,Programme
UK Statistics Authority,Office for National Statistics,16-Aug-18,Consultancy,Public Population and Policy - Operations,Ernst & Young Llp,99317,"291,415.20", Census Information Management Services,Large,Programme
UK Statistics Authority,Office for National Statistics,16-Aug-18,Accommodation and Building Management - Carbon Reduction Commitment,People and Business Services,"Department for Business, Energy and Industrial Strategy",99324,"5,357.26", Statistical Services,SME,Programme
UK Statistics Authority,Office for National Statistics,16-Aug-18,Accommodation and Building Management - Carbon Reduction Commitment,People and Business Services,"Department for Business, Energy and Industrial Strategy",99324,"19,643.28", Statistical Services,SME,Programme
UK Statistics Authority,Office for National Statistics,16-Aug-18,Accommodation and Building Management - Carbon Reduction Commitment,People and Business Services,"Department for Business, Energy and Industrial Strategy",99324,"14,881.28", Statistical Services,SME,Programme
UK Statistics Authority,Office for National Statistics,16-Aug-18,Accommodation and Building Management - Carbon Reduction Commitment,People and Business Services,"Department for Business, Energy and Industrial Strategy",99324,"19,643.28", Statistical Services,SME,Programme
UK Statistics Authority,Office for National Statistics,16-Aug-18,Electricity,People and Business Services,EDF Energy,30000995,"28,194.15", Electricity Charges Titchfield,Large,Programme
UK Statistics Authority,Office for National Statistics,16-Aug-18,Electricity,People and Business Services,EDF Energy,30000996,"27,212.80", Electricity Charges Newport,Large,Programme
UK Statistics Authority,Office for National Statistics,17-Aug-18,Contractors,Economic Statistics Transformation,Concept Information Technology Ltd T/A Concept Resourcing,99625,"4,568.72", Information Management Services,Large,Programme
UK Statistics Authority,Office for National Statistics,17-Aug-18,Contractors,Economic Statistics Transformation,Concept Information Technology Ltd T/A Concept Resourcing,99625,"4,742.89", Information Management Services,Large,Programme
UK Statistics Authority,Office for National Statistics,17-Aug-18,Contractors,Economic Statistics Transformation,Concept Information Technology Ltd T/A Concept Resourcing,99625,"1,982.90", Information Management Services,Large,Programme
UK Statistics Authority,Office for National Statistics,17-Aug-18,Contractors,National Accounts and Economic Statistics,Concept Information Technology Ltd T/A Concept Resourcing,99625,"12,960.00", Information Management Services,Large,Programme
UK Statistics Authority,Office for National Statistics,17-Aug-18,Short-Term Contract and Agency Staff,Economic Statistics Transformation,Concept Information Technology Ltd T/A Concept Resourcing,99625,"2,766.69", Information Management Services,Large,Programme
UK Statistics Authority,Office for National Statistics,17-Aug-18,Short-Term Contract and Agency Staff,Economic Statistics Transformation,Concept Information Technology Ltd T/A Concept Resourcing,99625,"4,758.43", Information Management Services,Large,Programme
UK Statistics Authority,Office for National Statistics,17-Aug-18,Short-Term Contract and Agency Staff,Economic Statistics Transformation,Concept Information Technology Ltd T/A Concept Resourcing,99625,"5,862.47", Information Management Services,Large,Programme
UK Statistics Authority,Office for National Statistics,17-Aug-18,Short-Term Contract and Agency Staff,Economic Statistics Transformation,Concept Information Technology Ltd T/A Concept Resourcing,99625,"3,982.96", Information Management Services,Large,Programme
UK Statistics Authority,Office for National Statistics,17-Aug-18,Short-Term Contract and Agency Staff,Economic Statistics Transformation,Concept Information Technology Ltd T/A Concept Resourcing,99625,"5,766.76", Information Management Services,Large,Programme
UK Statistics Authority,Office for National Statistics,17-Aug-18,Short-Term Contract and Agency Staff,Economic Statistics Transformation,Concept Information Technology Ltd T/A Concept Resourcing,99625,"1,760.46", Information Management Services,Large,Programme
UK Statistics Authority,Office for National Statistics,17-Aug-18,Short-Term Contract and Agency Staff,National Accounts and Economic Statistics,Concept Information Technology Ltd T/A Concept Resourcing,99625,"1,607.76", Information Management Services,Large,Programme
UK Statistics Authority,Office for National Statistics,17-Aug-18,Short-Term Contract and Agency Staff,National Accounts and Economic Statistics,Concept Information Technology Ltd T/A Concept Resourcing,99625,"4,084.52", Information Management Services,Large,Programme
UK Statistics Authority,Office for National Statistics,17-Aug-18,ICT Outsourcing and Maintenance/Support,Digital Services and Technology,Equiniti Limited,99630,"10,547.34", Information Management Services,Large,Programme
UK Statistics Authority,Office for National Statistics,17-Aug-18,ICT Outsourcing and Maintenance/Support,Digital Services and Technology,Equiniti Limited,99630,"36,665.46", Information Management Services,Large,Programme
UK Statistics Authority,Office for National Statistics,17-Aug-18,ICT Outsourcing and Maintenance/Support,Digital Services and Technology,Equiniti Limited,99630,776.88, Information Management Services,Large,Programme
UK Statistics Authority,Office for National Statistics,17-Aug-18,Consultancy,Public Population and Policy - Operations,Certeco Ltd,99637,"32,400.00", Information Management services,Large,Programme
UK Statistics Authority,Office for National Statistics,20-Aug-18,Facilities Management Contract Payments,"Finance, Planning and Performance",Vinci Construction UK Limited,99651,"297,101.63", Facility Management Services,Large,Programme
UK Statistics Authority,Office for National Statistics,20-Aug-18,ICT Outsourcing and Maintenance/Support,Data Science Campus,SCC,99653,"7,651.01", Information Management Services,Large,Programme
UK Statistics Authority,Office for National Statistics,20-Aug-18,IT Purchases > 2K,Data Science Campus,SCC,99653,"94,500.00", Computer Hardware,Large,Programme
UK Statistics Authority,Office for National Statistics,20-Aug-18,Software Pool 4Yr,Data Science Campus,SCC,99653,"44,918.93", Computer Hardware,Large,Programme
UK Statistics Authority,Office for National Statistics,20-Aug-18,IT Contractual Services,Digital Services and Technology,Methods Digital Ltd,99658,"88,200.00", Computer Hardware,Large,Programme
UK Statistics Authority,Office for National Statistics,20-Aug-18,IT Contractual Services,Digital Services and Technology,QA Ltd,99659,"62,880.00", Information Management Services,Large,Programme
UK Statistics Authority,Office for National Statistics,20-Aug-18,ICT Outsourcing and Maintenance/Support,Digital Services and Technology,Amazon Web Services Inc,30001001,"68,549.37", Web Services,Large,Programme
UK Statistics Authority,Office for National Statistics,21-Aug-18,IT Contractual Services,Digital Services and Technology,Methods Digital Ltd,99934,"15,840.00", Computer Hardware,Large,Programme
UK Statistics Authority,Office for National Statistics,21-Aug-18,IT Contractual Services,Digital Services and Technology,Methods Digital Ltd,99934,"18,000.00", Computer Hardware,Large,Programme
UK Statistics Authority,Office for National Statistics,21-Aug-18,IT Contractual Services,Digital Services and Technology,QA Ltd,99935,"134,742.00", Information Management Services,Large,Programme
UK Statistics Authority,Office for National Statistics,22-Aug-18,ICT Outsourcing and Maintenance/Support,Digital Services and Technology,Cloudera Inc,99936,"145,845.32", Information Management Services,Large,Programme
UK Statistics Authority,Office for National Statistics,23-Aug-18,Capitalised Contractors,Digital Services and Technology,E Synergy Solutions,100260,"14,784.00", Information Management Services ,SME,Programme
UK Statistics Authority,Office for National Statistics,23-Aug-18,Contractors,Digital Services and Technology,E Synergy Solutions,100260,"22,560.00", Information Management Services ,SME,Programme
UK Statistics Authority,Office for National Statistics,23-Aug-18,Hotels and Accommodation,Digital Services and Technology,E Synergy Solutions,100260,209.22, Information Management Services ,SME,Programme
UK Statistics Authority,Office for National Statistics,23-Aug-18,ICT Outsourcing and Maintenance/Support,Digital Services and Technology,E Synergy Solutions,100260,"3,150.00", Information Management Services ,SME,Programme
UK Statistics Authority,Office for National Statistics,23-Aug-18,IT Contractual Services,Digital Services and Technology,E Synergy Solutions,100260,"16,368.00", Information Management Services ,SME,Programme
UK Statistics Authority,Office for National Statistics,23-Aug-18,IT Contractual Services,Digital Services and Technology,E Synergy Solutions,100260,"54,156.00", Information Management Services ,SME,Programme
UK Statistics Authority,Office for National Statistics,23-Aug-18,IT Contractual Services,Digital Services and Technology,E Synergy Solutions,100260,"13,072.44", Information Management Services ,SME,Programme
UK Statistics Authority,Office for National Statistics,23-Aug-18,IT Contractual Services,Digital Services and Technology,E Synergy Solutions,100260,"240,876.00", Information Management Services ,SME,Programme
UK Statistics Authority,Office for National Statistics,23-Aug-18,IT Contractual Services,Digital Services and Technology,E Synergy Solutions,100260,"15,120.00", Information Management Services ,SME,Programme
UK Statistics Authority,Office for National Statistics,23-Aug-18,IT Contractual Services,Digital Services and Technology,E Synergy Solutions,100260,"17,820.00", Information Management Services ,SME,Programme
UK Statistics Authority,Office for National Statistics,23-Aug-18,Short-Term Contract and Agency Staff,Economic Statistics Transformation,Concept Information Technology Ltd T/A Concept Resourcing,100261,"4,957.26", Information Management Services,Large,Programme
UK Statistics Authority,Office for National Statistics,23-Aug-18,Short-Term Contract and Agency Staff,"Methods, Data and Research",Concept Information Technology Ltd T/A Concept Resourcing,100261,"1,653.17", Information Management Services,Large,Programme
UK Statistics Authority,Office for National Statistics,23-Aug-18,Short-Term Contract and Agency Staff,National Accounts and Economic Statistics,Concept Information Technology Ltd T/A Concept Resourcing,100261,"39,291.54", Information Management Services,Large,Programme
UK Statistics Authority,Office for National Statistics,24-Aug-18,IT Contractual Services,Digital Services and Technology,QA Ltd,100280,"226,500.00", Information Management Services,Large,Programme
UK Statistics Authority,Office for National Statistics,24-Aug-18,Contractors,Digital Services and Technology,Parity Resources Limited,100281,"9,726.48", Information Management Services,Large,Programme
UK Statistics Authority,Office for National Statistics,24-Aug-18,Contractors,Digital Services and Technology,Parity Resources Limited,100281,"46,898.12", Information Management Services,Large,Programme
UK Statistics Authority,Office for National Statistics,24-Aug-18,Contractors,Digital Services and Technology,Parity Resources Limited,100281,"3,204.00", Information Management Services,Large,Programme
UK Statistics Authority,Office for National Statistics,24-Aug-18,Contractors,Digital Services and Technology,Parity Resources Limited,100281,249.41, Information Management Services,Large,Programme
UK Statistics Authority,Office for National Statistics,24-Aug-18,Contractors,Economic Statistics Transformation,Parity Resources Limited,100281,"12,768.00", Information Management Services,Large,Programme
UK Statistics Authority,Office for National Statistics,24-Aug-18,Contractors,"Finance, Planning and Performance",Parity Resources Limited,100281,"12,175.20", Information Management Services,Large,Programme
UK Statistics Authority,Office for National Statistics,24-Aug-18,Contractors,National Accounts and Economic Statistics,Parity Resources Limited,100281,"6,536.16", Information Management Services,Large,Programme
UK Statistics Authority,Office for National Statistics,24-Aug-18,Contractors,People and Business Services,Parity Resources Limited,100281,"13,392.72", Information Management Services,Large,Programme
UK Statistics Authority,Office for National Statistics,24-Aug-18,Contractors,Policy and Communication,Parity Resources Limited,100281,"18,288.00", Information Management Services,Large,Programme
UK Statistics Authority,Office for National Statistics,24-Aug-18,Contractors,Public Population and Policy - Operations,Parity Resources Limited,100281,"9,371.70", Information Management Services,Large,Programme
UK Statistics Authority,Office for National Statistics,24-Aug-18,Contractors,Public Population and Policy - Transformation,Parity Resources Limited,100281,"21,979.44", Information Management Services,Large,Programme
UK Statistics Authority,Office for National Statistics,24-Aug-18,Contractors,Public Population and Policy - Transformation,Parity Resources Limited,100281,"24,030.00", Information Management Services,Large,Programme
UK Statistics Authority,Office for National Statistics,24-Aug-18,Hotels and Accommodation,Digital Services and Technology,Parity Resources Limited,100281,5.46, Information Management Services,Large,Programme
UK Statistics Authority,Office for National Statistics,24-Aug-18,IT Contractual Services,Digital Services and Technology,Parity Resources Limited,100281,"34,351.20", Information Management Services,Large,Programme
UK Statistics Authority,Office for National Statistics,24-Aug-18,Short-Term Contract and Agency Staff,"Methods, Data and Research",Parity Resources Limited,100281,"2,661.93", Information Management Services,Large,Programme
UK Statistics Authority,Office for National Statistics,24-Aug-18,Short-Term Contract and Agency Staff,National Accounts and Economic Statistics,Parity Resources Limited,100281,"2,627.75", Information Management Services,Large,Programme
UK Statistics Authority,Office for National Statistics,24-Aug-18,Short-Term Contract and Agency Staff,National Accounts and Economic Statistics,Parity Resources Limited,100281,"3,035.18", Information Management Services,Large,Programme
UK Statistics Authority,Office for National Statistics,24-Aug-18,Short-Term Contract and Agency Staff,National Accounts and Economic Statistics,Parity Resources Limited,100281,378.62, Information Management Services,Large,Programme
UK Statistics Authority,Office for National Statistics,24-Aug-18,Short-Term Contract and Agency Staff,Policy and Communication,Parity Resources Limited,100281,126.6, Information Management Services,Large,Programme
UK Statistics Authority,Office for National Statistics,24-Aug-18,Short-Term Contract and Agency Staff,Public Population and Policy - Operations,Parity Resources Limited,100281,"1,413.70", Information Management Services,Large,Programme
UK Statistics Authority,Office for National Statistics,24-Aug-18,Short-Term Contract and Agency Staff,Public Population and Policy - Operations,Parity Resources Limited,100281,"5,922.24", Information Management Services,Large,Programme
UK Statistics Authority,Office for National Statistics,24-Aug-18,Short-Term Contract and Agency Staff,Public Population and Policy - Transformation,Parity Resources Limited,100281,"4,635.19", Information Management Services,Large,Programme
UK Statistics Authority,Office for National Statistics,24-Aug-18,Short-Term Contract and Agency Staff,Public Population and Policy - Transformation,Parity Resources Limited,100281,"9,131.40", Information Management Services,Large,Programme
UK Statistics Authority,Office for National Statistics,24-Aug-18,Travel and Subsistence,People and Business Services,Parity Resources Limited,100281,120.72, Information Management Services,Large,Programme
UK Statistics Authority,Office for National Statistics,28-Aug-18,IT Contractual Services,Digital Services and Technology,E Synergy Solutions,100692,"37,020.00", Information Management Services ,SME,Programme
UK Statistics Authority,Office for National Statistics,28-Aug-18,ICT Outsourcing and Maintenance/Support,Digital Services and Technology,SCC,100699,"41,097.00", Information Management Services,Large,Programme
UK Statistics Authority,Office for National Statistics,28-Aug-18,ICT Outsourcing and Maintenance/Support,Public Population and Policy - Transformation,SCC,100699,"61,800.00", Information Management Services,Large,Programme
UK Statistics Authority,Office for National Statistics,28-Aug-18,Telecommunications,Digital Services and Technology,BT Global Services,100701,"28,094.45", Information Management Services,Large,Programme
UK Statistics Authority,Office for National Statistics,28-Aug-18,Contractors,Digital Services and Technology,LA International,100704,"1,409.69", Information Management Services,SME,Programme
UK Statistics Authority,Office for National Statistics,28-Aug-18,Contractors,Digital Services and Technology,LA International,100704,"18,351.65", Information Management Services,SME,Programme
UK Statistics Authority,Office for National Statistics,28-Aug-18,Contractors,"Methods, Data and Research",LA International,100704,"7,497.00", Information Management Services,SME,Programme
UK Statistics Authority,Office for National Statistics,28-Aug-18,Contractors,National Accounts and Economic Statistics,LA International,100704,"2,883.48", Information Management Services,SME,Programme
UK Statistics Authority,Office for National Statistics,28-Aug-18,Contractors,Policy and Communication,LA International,100704,576.71, Information Management Services,SME,Programme
UK Statistics Authority,Office for National Statistics,28-Aug-18,IT Contractual Services,Digital Services and Technology,QA Ltd,100707,"114,465.00", Information Management Services,Large,Programme
UK Statistics Authority,Office for National Statistics,28-Aug-18,Capital Major Works > 25K,People and Business Services,Hawkings Cladding Ltd,100713,"62,507.08", Newport Cladding ,SME,Programme
UK Statistics Authority,Office for National Statistics,28-Aug-18,Major Works Over 25K,People and Business Services,Hawkings Cladding Ltd,100713,"11,495.41", Newport Cladding ,SME,Programme
UK Statistics Authority,Office for National Statistics,29-Aug-18,Surveys,Public Population and Policy - Operations,NatCen Social Research,100723,"237,186.90", Information Management Services,Large,Programme
UK Statistics Authority,Office for National Statistics,29-Aug-18,Accommodation and Building Management,Public Population and Policy - Operations,Heathrow Airport,100726,"30,897.67", Office Facilities for International Surveys,Large,Programme
UK Statistics Authority,Office for National Statistics,30-Aug-18,Travel and Subsistence,"Finance, Planning and Performance",Corporate Travel Management ,101025,"40,745.58", Travel and Accommodation Booking Service ,SME,Programme
